bitfinex/quotes_ETHUSD_20250323
["timestamp","ask_amount","ask_price","bid_price","bid_amount"]
[1742727137198,4.95868,2016.7,2016.3,30.808]
[1742727137393,4.95886,2016.6,2016.3,30.808]
[1742727138199,4.95886,2016.6,2016.3,35.76757]
[1742727138801,0.7848,2016.5,2016.3,26.214]
[1742727139000,5.74402,2016.5,2016.3,26.214]
[1742727139302,5.74402,2016.5,2016.1,9.554]
[1742727139489,10.70332,2016.5,2016.1,4.96]
[1742727139820,4.95936,2016.4,2016.1,0.55]
[1742727140597,4.95936,2016.4,2016.2,0.4512985]
[1742727141591,0.7848,2016.3,2016.2,0.4512985]
[1742727141801,5.74437,2016.3,2016.2,0.4512985]
[1742727142000,5.74437,2016.3,2016.2,0.41375998]
[1742727142320,5.74437,2016.3,2016.0,4.595]
[1742727142496,5.74437,2016.3,2016.2,0.41375998]
[1742727142674,5.74395,2016.5,2016.1,0.41478491]
[1742727142874,5.74395,2016.5,2016.2,0.41464806]
[1742727143173,5.74395,2016.5,2016.0,10.33666]
[1742727143600,4.95942,2016.4,2016.0,10.33666]
[1742727143800,4.95942,2016.4,2016.1,0.41478491]
[1742727144008,10.96610766,2016.4,2016.1,0.41478491]
[1742727147392,0.7848,2016.3,2016.1,0.41478491]
[1742727153390,10.96610766,2016.4,2016.1,0.41478491]
[1742727154430,6.00668766,2016.4,2016.1,0.41478491]
[1742727154628,10.96602766,2016.4,2016.1,0.41478491]
[1742727159130,6.00668766,2016.4,2016.1,0.41478491]
[1742727159295,6.00668766,2016.4,2016.1,5.37483491]
[1742727160133,6.00668766,2016.4,2016.1,1.18498491]
[1742727160326,6.00668766,2016.4,2016.2,4.95964]
[1742727161226,6.00668766,2016.4,2016.3,0.41492114]
[1742727161393,10.96562766,2016.6,2016.3,0.41492114]
[1742727162533,15.92466766,2016.6,2016.3,0.41492114]
[1742727164129,10.96562766,2016.6,2016.3,0.41492114]
[1742727164519,15.92466766,2016.6,2016.3,0.41492114]
[1742727164893,10.96562766,2016.6,2016.3,0.41492114]
[1742727169221,11.8753039,2016.6,2016.3,0.41492114]
[1742727169741,16.8343639,2016.6,2016.3,0.41492114]
[1742727169938,11.8753039,2016.6,2016.3,0.41492114]
[1742727170113,4.95908,2016.5,2016.3,0.41492114]
[1742727170441,4.95908,2016.5,2016.1,5.73014]
[1742727170830,4.95908,2016.5,2016.2,0.41645844]
[1742727174458,6.00668766,2016.6,2016.3,4.95952]
[1742727174615,10.96554766,2016.6,2016.4,0.41618478]
[1742727174816,10.96554766,2016.6,2016.2,4.95959]
[1742727175044,10.96554766,2016.6,2016.3,0.41632161]
[1742727181242,6.00668766,2016.6,2016.3,5.37587161]
[1742727181740,6.00668766,2016.6,2016.3,1.20472161]
[1742727181948,5.87527519,2016.6,2016.4,5.50912]
[1742727182239,5.87527519,2016.6,2016.5,0.41608214]
[1742727183732,10.83411519,2016.6,2016.5,0.41608214]
[1742727184128,15.79318519,2016.6,2016.2,4.95981]
[1742727184323,0.8137,2016.5,2016.2,4.95981]
[1742727185359,5.77293,2016.5,2016.0,36.56751]
[1742727185536,4.95939,2016.4,2016.3,0.38177914]
[1742727185731,4.95939,2016.4,2016.1,0.55]
[1742727185958,4.95939,2016.4,2016.3,0.38177914]
[1742727186556,4.95939,2016.4,2016.1,0.55]
[1742727186754,4.95939,2016.4,2016.3,0.38177914]
[1742727186955,4.95939,2016.4,2016.2,0.38191598]
[1742727187145,4.95939,2016.4,2016.3,0.38177914]
[1742727187549,4.95939,2016.4,2016.1,0.55]
[1742727187726,4.95939,2016.4,2016.3,0.38177914]
[1742727187928,4.95939,2016.4,2016.2,0.38191598]
[1742727188160,4.95939,2016.4,2016.3,0.38177914]
[1742727188459,4.95939,2016.4,2016.1,0.55]
[1742727188757,4.95939,2016.4,2016.2,0.38191598]
[1742727190830,4.95939,2016.4,2016.0,10.34351]
[1742727191052,4.95939,2016.4,2016.1,0.38232616]
[1742727191830,4.95982,2016.2,2016.1,0.38232616]
[1742727192447,5.77333,2016.3,2016.1,0.38232616]
[1742727196664,0.8137,2016.3,2016.1,0.38232616]
[1742727201146,4.95934,2016.4,2016.1,0.38232616]
[1742727202868,9.91891,2016.4,2016.1,0.38232616]
[1742727204768,4.95961,2016.3,2016.1,0.38232616]
[1742727205638,4.95934,2016.4,2016.1,0.38232616]
[1742727205842,9.91879,2016.4,2016.1,0.38232616]
[1742727206775,9.91881,2016.4,2016.1,0.38232616]
[1742727207074,9.91879,2016.4,2016.1,0.38232616]
[1742727207285,4.95934,2016.4,2016.1,0.38232616]
[1742727207455,9.91882,2016.4,2016.1,0.38232616]
[1742727210179,4.95934,2016.4,2016.1,0.38232616]
[1742727214650,9.91887,2016.4,2016.1,0.38232616]
[1742727215051,4.95964,2016.3,2016.1,0.38232616]
[1742727215646,5.74004,2016.3,2016.1,0.38232616]
[1742727215860,4.96053,2016.0,2015.6,0.8302]
[1742727216054,4.96061,2015.9,2015.7,0.35223086]
[1742727216261,4.96061,2015.9,2015.6,0.8302]
[1742727216463,4.96061,2015.9,2015.7,0.35223086]
[1742727216662,4.96061,2015.9,2015.6,0.8302]
[1742727216855,4.96061,2015.9,2015.7,0.35223086]
[1742727217063,4.96061,2015.9,2015.6,0.8302]
[1742727217262,4.96061,2015.9,2015.7,0.35223086]
[1742727217460,4.96061,2015.9,2015.6,0.8302]
[1742727217680,4.96061,2015.9,2015.7,4.94623086]
[1742727217890,4.96061,2015.9,2015.7,0.35223086]
[1742727218183,4.9608,2015.8,2015.5,5.144]
[1742727220285,9.92174,2015.8,2015.5,5.144]
[1742727220584,10.70214,2015.8,2015.5,5.145]
[1742727220982,4.96111,2015.7,2015.5,4.595]
[1742727221194,4.9613,2015.6,2015.5,4.595]
[1742727226184,4.96111,2015.7,2015.5,4.595]
[1742727226392,4.9613,2015.6,2015.5,4.595]
[1742727227993,9.92234,2015.7,2015.5,4.595]
[1742727228194,9.92229,2015.7,2015.5,4.595]
[1742727228359,4.96111,2015.7,2015.5,4.595]
[1742727228785,4.9613,2015.6,2015.5,4.595]
[1742727230598,4.9613,2015.6,2015.5,4.95182539]
[1742727239304,4.9613,2015.6,2015.5,0.35682539]
[1742727239508,4.96155,2015.5,2015.3,4.596]
[1742727239695,4.96155,2015.5,2015.4,0.35699634]
[1742727239912,4.96155,2015.5,2015.3,4.596]
[1742727240097,4.96155,2015.5,2015.4,0.35699634]
[1742727240292,4.96155,2015.5,2015.3,4.596]
[1742727240603,4.96155,2015.5,2015.4,0.35699634]
[1742727240979,9.92332,2015.5,2015.3,4.596]
[1742727241180,4.96155,2015.5,2015.4,0.35699634]
[1742727241474,4.96155,2015.5,2015.3,4.596]
[1742727241804,4.96155,2015.5,2015.4,0.35699634]
[1742727242207,4.96155,2015.5,2015.3,4.596]
[1742727242396,4.96155,2015.5,2015.4,0.35699634]
[1742727242775,4.96155,2015.5,2015.3,4.596]
[1742727242987,4.96155,2015.5,2015.4,0.35699634]
[1742727243376,4.96155,2015.5,2015.3,4.596]
[1742727243681,4.96155,2015.5,2015.4,0.35699634]
[1742727244014,4.96155,2015.5,2015.3,4.596]
[1742727244190,4.96155,2015.5,2015.4,0.35699634]
[1742727244577,4.96155,2015.5,2015.3,4.596]
[1742727244775,4.96155,2015.5,2015.4,0.35699634]
[1742727245090,4.9613,2015.6,2015.3,4.596]
[1742727245310,4.9613,2015.6,2015.4,0.35699634]
[1742727245494,4.9613,2015.6,2015.3,4.596]
[1742727245694,4.9613,2015.6,2015.4,0.35699634]
[1742727245896,4.9613,2015.6,2015.3,4.596]
[1742727246214,4.9613,2015.6,2015.4,0.35699634]
[1742727246505,4.9613,2015.6,2015.3,4.596]
[1742727246808,4.9613,2015.6,2015.4,0.35699634]
[1742727247319,4.9613,2015.6,2015.5,0.35685939]
[1742727247472,4.9613,2015.6,2015.3,4.596]
[1742727247676,4.9613,2015.6,2015.4,0.35699634]
[1742727247876,4.9613,2015.6,2015.3,4.596]
[1742727248105,4.9613,2015.6,2015.4,0.35699634]
[1742727248304,4.9613,2015.6,2015.3,4.596]
[1742727248508,4.9613,2015.6,2015.4,0.35699634]
[1742727248678,4.9613,2015.6,2015.3,4.596]
[1742727248875,4.9613,2015.6,2015.4,0.35699634]
[1742727249110,4.9613,2015.6,2015.3,4.596]
[1742727249309,4.96105,2015.7,2015.4,0.35699634]
[1742727249482,4.96105,2015.7,2015.3,9.558]
[1742727249811,9.92232,2015.7,2015.4,0.35699634]
[1742727250310,9.92232,2015.7,2015.5,0.35685939]
[1742727250488,9.92232,2015.7,2015.3,9.558]
[1742727250689,9.92232,2015.7,2015.4,0.35699634]
[1742727250876,9.92232,2015.7,2015.3,9.558]
[1742727251075,5.74126,2015.8,2015.4,6.14033634]
[1742727251304,4.96086,2015.8,2015.4,6.14033634]
[1742727252111,4.96086,2015.8,2015.4,6.14032634]
[1742727252436,15.79654519,2015.9,2015.5,5.51152]
[1742727252580,15.79655519,2015.9,2015.5,5.51152]
[1742727252780,10.83587519,2015.9,2015.6,0.35682454]
[1742727253210,15.79663519,2015.9,2015.6,0.35682454]
[1742727255214,4.96105,2015.8,2015.6,0.35682454]
[1742727255918,10.83589519,2015.9,2015.6,0.35682454]
[1742727258931,15.79667519,2015.9,2015.6,0.35682454]
[1742727259594,4.96081,2015.8,2015.6,0.35682454]
[1742727262830,9.92184,2015.8,2015.6,0.35682454]
[1742727263116,4.96105,2015.7,2015.6,0.35682454]
[1742727263298,4.96105,2015.7,2015.4,4.595]
[1742727263503,4.96132,2015.6,2015.5,0.35696147]
[1742727266296,4.96105,2015.7,2015.5,0.35696147]
[1742727267830,4.9613,2015.6,2015.5,0.35696147]
[1742727271950,5.743,2015.6,2015.5,0.35696147]
[1742727273005,11.61827519,2015.6,2015.5,0.35696147]
[1742727273209,4.96164,2015.5,2015.2,4.595]
[1742727275351,4.96164,2015.5,2015.3,0.35730346]
[1742727277256,11.61828519,2015.6,2015.3,0.35730346]
[1742727277485,10.83658519,2015.6,2015.3,0.35730346]
[1742727278051,15.79808519,2015.6,2015.3,0.35730346]
[1742727278454,5.87527519,2015.6,2015.3,0.35730346]
[1742727278626,5.87527519,2015.6,2015.3,5.31932346]
[1742727279725,10.83658519,2015.6,2015.3,5.31932346]
[1742727279922,10.83658519,2015.6,2015.3,0.35730346]
[1742727281051,11.61828519,2015.6,2015.3,0.35730346]
[1742727283877,6.65697519,2015.6,2015.3,0.35730346]
[1742727284228,6.65697519,2015.6,2015.3,5.31929346]
[1742727284470,11.61827519,2015.6,2015.3,5.31929346]
[1742727284759,11.61827519,2015.6,2015.3,0.35730346]
[1742727287873,11.61827519,2015.6,2015.3,5.31931346]
[1742727288245,6.65697519,2015.6,2015.3,5.31931346]
[1742727289044,10.83658519,2015.6,2015.3,0.35730346]
[1742727290501,4.96131,2015.6,2015.3,0.35730346]
[1742727290988,5.74532,2015.7,2015.3,5.31931346]
[1742727291180,4.9613,2015.6,2015.3,5.31931346]
[1742727292188,4.9613,2015.6,2015.3,0.35730346]
[1742727299092,5.74532,2015.7,2015.3,5.31929346]
[1742727299989,3.0,2016.2,2015.3,5.31929346]
[1742727299990,0.7842,2016.3,2015.7,0.8172]
[1742727300207,7.13483339,2016.5,2016.0,4.96015]
[1742727300414,4.95945,2016.4,2016.0,4.595]
[1742727300730,4.95945,2016.4,2016.1,0.3566846]
[1742727301018,4.95958,2016.3,2016.1,0.3566846]
[1742727311301,5.75362,2016.2,2016.1,0.3566846]
[1742727311905,4.96032,2016.0,2015.8,4.594]
[1742727312627,4.96056,2015.9,2015.8,4.594]
[1742727313035,4.96032,2016.0,2015.8,4.594]
[1742727316332,4.96056,2015.9,2015.8,4.594]
[1742727316913,4.96032,2016.0,2015.8,4.594]
[1742727318238,4.96007,2016.1,2015.8,4.594]
[1742727319341,4.96007,2016.1,2015.8,5.11473119]
[1742727319506,4.96007,2016.1,2015.8,5.3523]
[1742727320534,4.96007,2016.1,2015.9,0.32486535]
[1742727320934,4.96007,2016.1,2015.8,5.3523]
[1742727321148,4.96007,2016.1,2016.0,0.32537489]
[1742727321370,4.96007,2016.1,2015.9,0.32551176]
[1742727321521,4.96007,2016.1,2016.0,0.32537489]
[1742727321919,4.96007,2016.1,2015.8,5.3523]
[1742727322129,4.96007,2016.1,2016.0,0.32537489]
[1742727322345,4.96007,2016.1,2015.9,0.32551176]
[1742727322551,4.96007,2016.1,2016.0,0.32537489]
[1742727322931,4.96007,2016.1,2015.8,5.3523]
[1742727323130,4.96007,2016.1,2016.0,0.32537489]
[1742727323648,4.96007,2016.1,2015.8,5.3523]
[1742727323948,4.96007,2016.1,2016.0,0.32537489]
[1742727324150,4.96007,2016.1,2015.9,0.32551176]
[1742727324323,4.96007,2016.1,2016.0,0.32537489]
[1742727324730,4.96007,2016.1,2015.8,5.3523]
[1742727324934,4.96007,2016.1,2016.0,0.32537489]
[1742727325147,4.96007,2016.1,2015.9,0.32551176]
[1742727325337,4.96007,2016.1,2016.0,0.32537489]
[1742727325651,4.96007,2016.1,2015.8,5.3523]
[1742727326250,4.96007,2016.1,2015.9,0.32551176]
[1742727326414,4.96031,2016.0,2015.8,5.3523]
[1742727327351,5.75364,2016.2,2015.8,5.3523]
[1742727327554,4.96016,2016.1,2015.8,5.3523]
[1742727327869,0.8089,2016.4,2016.1,4.95996]
[1742727328050,4.95945,2016.4,2016.1,0.7659]
[1742727329573,4.95915,2016.5,2016.1,0.7659]
[1742727329747,4.95915,2016.5,2016.1,5.72592]
[1742727329748,9.91846,2016.5,2016.1,5.72592]
[1742727330754,9.91846,2016.5,2016.1,0.7659]
[1742727330935,4.95937,2016.4,2016.1,0.7659]
[1742727332156,4.95915,2016.5,2016.1,0.7659]
[1742727334950,4.95915,2016.5,2016.1,5.72578]
[1742727335560,4.95915,2016.5,2016.2,0.32333215]
[1742727336254,4.95949,2016.4,2016.2,0.32333215]
[1742727336425,9.91903,2016.4,2016.0,0.55]
[1742727336624,4.95959,2016.3,2016.0,0.55]
[1742727337696,4.95986,2016.2,2015.9,0.7972]
[1742727340966,4.95959,2016.3,2015.9,5.75768]
[1742727341335,4.95959,2016.3,2015.9,0.7972]
[1742727341537,9.91937,2016.3,2015.9,0.7972]
[1742727343056,9.91931,2016.3,2015.9,0.7972]
[1742727344173,4.95959,2016.3,2015.9,0.7972]
[1742727344379,4.95959,2016.3,2015.9,5.75773]
[1742727344576,9.91941,2016.3,2015.9,0.7972]
[1742727344734,4.95959,2016.3,2015.9,0.7972]
[1742727345076,4.95959,2016.3,2015.9,5.75767]
[1742727347189,4.95986,2016.2,2015.9,0.7972]
[1742727348868,4.95964,2016.3,2015.9,5.75773]
[1742727349868,4.95964,2016.3,2015.9,10.7181]
[1742727350438,4.95964,2016.3,2016.0,0.3241842]
[1742727350968,4.95909,2016.5,2016.0,5.2844742]
[1742727351265,9.91841,2016.5,2016.1,5.79245]
[1742727351582,9.91841,2016.5,2016.1,6.11639525]
[1742727352386,4.95937,2016.4,2016.1,1.15644525]
[1742727354843,9.91885,2016.4,2016.1,1.15644525]
[1742727355042,4.95937,2016.4,2016.1,1.15644525]
[1742727358988,4.95909,2016.5,2016.1,6.11650525]
[1742727361372,9.91836,2016.5,2016.1,6.11650525]
[1742727361557,4.95934,2016.4,2016.1,1.15644525]
[1742727362263,4.95913,2016.5,2016.1,6.11647525]
[1742727362485,9.91832,2016.5,2016.1,6.11647525]
[1742727362803,4.95913,2016.5,2016.1,6.11647525]
[1742727363581,9.91834,2016.5,2016.1,6.11647525]
[1742727363975,4.95913,2016.5,2016.1,6.11647525]
[1742727369397,4.95935,2016.4,2016.1,6.11647525]
[1742727369599,4.95913,2016.5,2016.1,6.11647525]
[1742727369793,5.60990098,2016.5,2016.1,6.11647525]
[1742727370299,10.56918098,2016.5,2016.1,6.11647525]
[1742727370598,5.60990098,2016.5,2016.1,6.11647525]
[1742727374005,5.60990098,2016.5,2016.1,1.15644525]
[1742727374608,4.95939,2016.4,2016.1,1.15644525]
[1742727379690,10.56921098,2016.5,2016.1,6.11646525]
[1742727380712,4.95939,2016.4,2016.1,1.15644525]
[1742727390194,4.95982,2016.2,2016.1,0.32394525]
[1742727390388,4.95982,2016.2,2015.8,30.818]
[1742727390639,4.96023,2016.1,2015.9,0.32408289]
[1742727391128,4.96031,2016.0,2015.8,26.225]
[1742727391424,4.96031,2016.0,2015.9,0.32425298]
[1742727391839,4.96056,2015.9,2015.8,26.225]
[1742727391994,5.72986,2015.9,2015.8,26.225]
[1742727394068,10.69063,2015.9,2015.5,5.3735]
[1742727394765,10.69056,2015.9,2015.5,5.3735]
[1742727394974,4.96056,2015.9,2015.5,5.3735]
[1742727395263,4.96056,2015.9,2015.5,10.33501]
[1742727395621,4.96056,2015.9,2015.6,0.32578647]
[1742727396552,9.92136,2015.9,2015.6,0.32578647]
[1742727397454,4.96082,2015.8,2015.6,0.32578647]
[1742727397665,4.96062,2015.9,2015.6,0.32578647]
[1742727398953,4.96082,2015.8,2015.6,0.32578647]
[1742727399756,4.96062,2015.9,2015.6,0.32578647]
[1742727399914,9.92132,2015.9,2015.6,0.32578647]
[1742727400120,4.96062,2015.9,2015.6,0.32578647]
[1742727401464,9.92139,2015.9,2015.6,0.32578647]
[1742727402154,4.96081,2015.8,2015.6,0.32578647]
[1742727403957,4.96062,2015.9,2015.6,0.32578647]
[1742727408970,4.96032,2016.0,2015.6,5.28707647]
[1742727409150,4.96057,2015.9,2015.6,0.32578647]
[1742727410281,4.96081,2015.8,2015.6,0.32578647]
[1742727410445,4.96105,2015.7,2015.6,0.32578647]
[1742727410951,4.96105,2015.7,2015.6,0.32697725]
[1742727411128,4.96105,2015.7,2015.4,4.593]
[1742727411465,4.96105,2015.7,2015.5,0.32711418]
[1742727412152,9.92232,2015.7,2015.5,0.32711418]
[1742727412857,4.9613,2015.6,2015.5,0.32711418]
[1742727413358,4.96109,2015.7,2015.5,0.32711418]
[1742727413560,9.92236,2015.7,2015.5,0.32711418]
[1742727413727,4.9613,2015.6,2015.5,0.32711418]
[1742727421872,4.9613,2015.6,2015.3,5.9509]
[1742727422061,4.9613,2015.6,2015.5,0.3275566]
[1742727422375,4.96154,2015.5,2015.3,5.9509]
[1742727422573,0.8078,2015.8,2015.1,27.0491]
[1742727422868,4.96184,2015.4,2015.2,4.593]
[1742727425383,4.96184,2015.4,2015.3,0.32783051]
[1742727428577,9.92321,2015.5,2015.3,0.32783051]
[1742727429476,4.96155,2015.5,2015.3,0.32783051]
[1742727429879,9.92332,2015.5,2015.3,0.32783051]
[1742727430876,9.92326,2015.5,2015.3,0.32783051]
[1742727431990,4.96179,2015.4,2015.3,0.32783051]
[1742727436489,9.92326,2015.5,2015.3,0.32783051]
[1742727438390,4.96179,2015.4,2015.3,0.32783051]
[1742727440994,4.96155,2015.5,2015.3,0.32783051]
[1742727443495,9.9233,2015.5,2015.3,0.32783051]
[1742727445496,4.96155,2015.5,2015.3,0.32783051]
[1742727445800,9.92332,2015.5,2015.3,0.32783051]
[1742727446304,4.96179,2015.4,2015.3,0.32783051]
[1742727452766,4.96161,2015.5,2015.3,0.32783051]
[1742727455392,9.92335,2015.5,2015.3,0.32783051]
[1742727455905,4.96161,2015.5,2015.3,0.32783051]
[1742727456479,4.96133,2015.6,2015.3,1.08953051]
[1742727458512,4.96092,2015.8,2015.4,1.3117]
[1742727458712,4.96092,2015.8,2015.4,6.27339]
[1742727458877,4.96092,2015.8,2015.5,0.32973488]
[1742727460008,9.92194,2015.8,2015.5,0.32973488]
[1742727460177,4.96092,2015.8,2015.5,0.32973488]
[1742727464014,9.92123,2015.9,2015.5,5.29124488]
[1742727464380,4.96083,2015.8,2015.5,0.32973488]
[1742727464606,4.96056,2015.9,2015.6,0.7617]
[1742727464813,4.96056,2015.9,2015.7,0.32946103]
[1742727465012,4.96056,2015.9,2015.6,0.7617]
[1742727465214,4.96056,2015.9,2015.7,0.32946103]
[1742727465383,4.96056,2015.9,2015.6,0.7617]
[1742727465585,4.96056,2015.9,2015.7,0.32946103]
[1742727465779,4.96056,2015.9,2015.6,0.7617]
[1742727466005,4.96056,2015.9,2015.7,0.32857611]
[1742727466312,4.96056,2015.9,2015.6,0.7617]
[1742727466504,4.96056,2015.9,2015.8,0.32843921]
[1742727466681,4.96056,2015.9,2015.7,0.32857611]
[1742727466877,4.96056,2015.9,2015.8,0.32843921]
[1742727467314,4.96056,2015.9,2015.6,0.7617]
[1742727467501,4.96056,2015.9,2015.8,0.32843921]
[1742727467703,4.96049,2016.0,2015.7,0.32857611]
[1742727467890,9.92101,2016.0,2015.8,0.32843921]
[1742727468095,4.96049,2016.0,2015.8,0.32843921]
[1742727468296,4.96031,2016.0,2015.6,5.72299]
[1742727468497,4.96031,2016.0,2015.9,0.32830231]
[1742727468684,4.96056,2015.9,2015.6,5.72299]
[1742727468885,4.96031,2016.0,2015.6,5.72299]
[1742727469185,4.96031,2016.0,2015.6,0.7617]
[1742727469380,4.96068,2015.9,2015.6,0.7617]
[1742727470519,4.96068,2015.9,2015.7,0.32857611]
[1742727470886,4.96068,2015.9,2015.6,0.7617]
[1742727471086,4.96068,2015.9,2015.8,0.32843921]
[1742727471328,4.96068,2015.9,2015.7,0.32857611]
[1742727471491,4.96068,2015.9,2015.8,0.32843921]
[1742727471821,4.96068,2015.9,2015.6,0.7617]
[1742727471984,4.96068,2015.9,2015.7,0.32857611]
[1742727472184,4.96068,2015.9,2015.6,0.7617]
[1742727472417,4.96068,2015.9,2015.7,0.32857611]
[1742727472618,4.96068,2015.9,2015.6,0.7617]
[1742727472919,4.96068,2015.9,2015.7,0.32857611]
[1742727473222,4.96068,2015.9,2015.6,0.7617]
[1742727473421,4.96068,2015.9,2015.7,0.32857611]
[1742727473722,4.96068,2015.9,2015.6,0.7617]
[1742727473889,4.96068,2015.9,2015.8,0.32843921]
[1742727474089,4.96068,2015.9,2015.7,0.32857611]
[1742727474389,4.96068,2015.9,2015.8,0.32843921]
[1742727474589,4.96068,2015.9,2015.6,0.7617]
[1742727474788,4.96068,2015.9,2015.7,0.32857611]
[1742727475011,4.96068,2015.9,2015.6,0.7617]
[1742727475221,4.96068,2015.9,2015.7,0.32857611]
[1742727475421,4.96068,2015.9,2015.6,0.7617]
[1742727475616,4.9608,2015.8,2015.7,0.32857611]
[1742727475804,4.96126,2015.7,2015.3,4.592]
[1742727476010,9.92252,2015.7,2015.4,0.32857849]
[1742727476210,4.96139,2015.6,2015.3,4.592]
[1742727476390,4.96139,2015.6,2015.4,0.32857849]
[1742727476596,4.96158,2015.5,2015.3,4.592]
[1742727476805,4.96158,2015.5,2015.4,0.32857849]
[1742727477014,4.96158,2015.5,2015.3,4.592]
[1742727477210,4.96139,2015.6,2015.4,0.32857849]
[1742727477411,4.96139,2015.6,2015.2,10.3457]
[1742727477696,4.96139,2015.6,2015.3,0.32871545]
[1742727480795,4.96179,2015.4,2015.3,0.32871545]
[1742727481024,5.72787,2015.0,2014.9,26.237]
[1742727481222,5.72787,2015.0,2014.9,26.56626343]
[1742727493537,4.96277,2015.0,2014.9,26.56626343]
[1742727496349,4.96277,2015.0,2014.9,0.32926343]
[1742727496643,0.7844,2015.3,2014.9,0.55]
[1742727496842,4.96179,2015.4,2015.0,0.33314369]
[1742727497043,4.96205,2015.3,2015.0,0.33314369]
[1742727497213,4.96179,2015.4,2015.1,0.7596]
[1742727497418,9.92382,2015.4,2015.2,0.33269943]
[1742727497929,9.92378,2015.4,2015.2,0.33269943]
[1742727498533,9.92331,2015.5,2015.2,0.33269943]
[1742727498746,4.96192,2015.4,2015.2,0.33269943]
[1742727499625,9.92392,2015.4,2015.2,0.33269943]
[1742727499828,4.96192,2015.4,2015.2,0.33269943]
[1742727500043,4.96193,2015.4,2015.2,0.33269943]
[1742727500370,9.92391,2015.4,2015.2,0.33269943]
[1742727500854,4.96193,2015.4,2015.2,0.33269943]
[1742727501149,4.9615,2015.6,2015.3,0.7596]
[1742727501529,4.9615,2015.6,2015.4,0.33133591]
[1742727501914,4.9615,2015.6,2015.3,0.7596]
[1742727502118,9.92302,2015.6,2015.5,0.33119896]
[1742727502315,4.96154,2015.5,2015.4,0.33133591]
[1742727502547,4.96154,2015.5,2015.3,0.7596]
[1742727503547,0.7764,2016.3,2015.6,4.96109]
[1742727503752,4.96028,2016.1,2015.6,9.56009]
[1742727504138,9.92051,2016.1,2015.6,9.56009]
[1742727504336,4.96023,2016.1,2015.6,9.56009]
[1742727504645,4.96023,2016.1,2015.6,4.96109]
[1742727504824,4.96023,2016.1,2015.6,9.56209]
[1742727505025,4.95983,2016.2,2015.8,0.8044]
[1742727505625,5.73598,2016.3,2015.8,5.76519]
[1742727505821,4.95958,2016.3,2015.9,4.96042]
[1742727506937,4.95958,2016.3,2015.9,4.96041]
[1742727507138,5.76789,2016.5,2016.1,0.8044]
[1742727507550,4.95934,2016.4,2016.1,0.8044]
[1742727509168,4.9597,2016.3,2016.1,0.8044]
[1742727509369,4.95938,2016.4,2016.1,0.8044]
[1742727515488,4.95938,2016.4,2016.2,0.32619011]
[1742727516187,5.76128,2016.3,2015.9,4.96055]
[1742727529496,0.8016,2016.3,2016.0,4.96027]
[1742727529795,5.76118,2016.3,2016.0,4.96027]
[1742727529977,0.8016,2016.3,2016.0,4.96027]
[1742727530419,0.8016,2016.3,2016.0,4.9602]
[1742727530592,0.8016,2016.3,2016.1,0.32642904]
[1742727538895,10.73026,2016.5,2016.1,5.28644904]
[1742727539302,5.77099,2016.5,2016.1,10.24635904]
[1742727539483,5.77099,2016.5,2016.1,5.28633904]
[1742727543909,10.73027,2016.5,2016.1,5.28633904]
[1742727544411,5.77099,2016.5,2016.1,5.28633904]
[1742727544597,0.8119,2016.5,2016.1,5.28638904]
[1742727544801,0.8119,2016.5,2016.1,5.28642904]
[1742727544802,5.771,2016.5,2016.1,5.28642904]
[1742727545207,0.8119,2016.5,2016.1,5.28635904]
[1742727545512,4.95876,2016.7,2016.3,4.9595]
[1742727545812,9.91758,2016.7,2016.3,4.9595]
[1742727546105,4.95885,2016.6,2016.4,0.32578036]
[1742727546281,4.95885,2016.6,2016.2,4.95977]
[1742727546481,4.95885,2016.6,2016.5,0.32564355]
[1742727546710,4.95885,2016.6,2016.2,4.95977]
[1742727546913,4.95885,2016.6,2016.5,0.32479314]
[1742727547280,4.95885,2016.6,2016.2,4.95977]
[1742727547480,4.95885,2016.6,2016.5,0.32479314]
[1742727547681,4.95885,2016.6,2016.2,4.95977]
[1742727547877,4.95885,2016.6,2016.5,0.32479314]
[1742727548099,4.95885,2016.6,2016.2,4.95977]
[1742727548306,4.95885,2016.6,2016.5,0.32479314]
[1742727548714,4.95885,2016.6,2016.2,4.95977]
[1742727549014,4.95885,2016.6,2016.3,0.32506677]
[1742727549716,9.91759,2016.7,2016.3,0.32506677]
[1742727550018,9.91756,2016.7,2016.3,5.28462677]
[1742727550584,4.95884,2016.6,2016.3,5.28462677]
[1742727551919,4.95884,2016.6,2016.3,0.32506677]
[1742727553722,9.91742,2016.7,2016.3,0.32506677]
[1742727554896,4.95886,2016.6,2016.3,0.32506677]
[1742727556195,6.485186,2016.6,2016.3,0.32506677]
[1742727561620,1.526326,2016.6,2016.3,5.28462677]
[1742727562727,6.485196,2016.6,2016.3,0.32506677]
[1742727565532,1.526326,2016.6,2016.3,0.32506677]
[1742727565833,4.9587,2016.7,2016.3,0.32506677]
[1742727566427,4.9587,2016.7,2016.3,5.28463677]
[1742727567428,9.91753,2016.7,2016.3,5.28463677]
[1742727567811,4.95885,2016.6,2016.3,0.32506677]
[1742727572320,4.95885,2016.6,2016.3,5.28463677]
[1742727573941,4.95909,2016.5,2016.3,0.32506677]
[1742727577310,4.95933,2016.4,2016.3,0.32506677]
[1742727577515,5.76683,2016.4,2016.3,0.32506677]
[1742727577717,4.95962,2016.3,2016.0,5.3443]
[1742727577917,4.95962,2016.3,2016.1,0.32272076]
[1742727584353,4.95982,2016.2,2016.1,0.32272076]
[1742727585045,4.95962,2016.3,2016.1,0.32272076]
[1742727593561,9.91941,2016.3,2016.1,0.32272076]
[1742727594063,4.95982,2016.2,2016.1,0.32272076]
[1742727598556,6.836314,2016.2,2016.1,0.32272076]
[1742727599580,4.96031,2016.1,2015.8,4.59]
[1742727599734,9.92062,2016.1,2015.9,0.32353875]
[1742727600068,4.96034,2016.0,2015.8,4.59]
[1742727601154,0.8038,2016.6,2016.0,1.3016]
[1742727601354,4.9588,2016.7,2016.3,5.71107]